[Event "January 2 Early 2024"]
[Site "https://www.chess.com"]
[Date "2024.01.02"]
[Round "9"]
[White "Smirnov, Timofey"]
[Black "Diaz Herquinio, Brahian"]
[Result "0-1"]
[Board "173"]
[TimeControl "180+1"]
[WhiteFideId "24176427"]
[BlackFideId "3809480"]
[WhiteElo "1981"]
[BlackElo "2399"]
[WhiteTeam "RUS"]
[BlackTeam "PER"]
[WhiteClock "0:00:00"]
[BlackClock "0:00:14"]

1. d4 {[%clk 0:02:58]}  d5 {[%clk 0:02:57]} 2. Bf4 {[%clk 0:02:57]}  e6 {[%clk 0:02:58]} 3. e3 {[%clk 0:02:57]}  Nf6 {[%clk 0:02:58]} 4. Nd2 {[%clk 0:02:57]}  c5 {[%clk 0:02:58]} 5. c3 {[%clk 0:02:57]}  Nc6 {[%clk 0:02:58]} 6. Ngf3 {[%clk 0:02:56]}  Bd6 {[%clk 0:02:58]} 7. Bg3 {[%clk 0:02:56]}  O-O {[%clk 0:02:58]} 8. Bd3 {[%clk 0:02:55]}  b6 {[%clk 0:02:58]} 9. e4 {[%clk 0:02:52]}  Be7 {[%clk 0:02:58]} 10. e5 {[%clk 0:02:39]}  Nh5 {[%clk 0:02:58]} 11. O-O {[%clk 0:02:38]}  g6 {[%clk 0:02:46]} 12. a4 {[%clk 0:02:16]}  cxd4 {[%clk 0:02:35]} 13. cxd4 {[%clk 0:02:10]}  Nb4 {[%clk 0:02:35]} 14. Be2 {[%clk 0:02:03]}  Ba6 {[%clk 0:02:27]} 15. Rc1 {[%clk 0:01:58]}  Rc8 {[%clk 0:02:10]} 16. Bxa6 {[%clk 0:01:55]}  Nxa6 {[%clk 0:02:09]} 17. Rxc8 {[%clk 0:01:50]}  Qxc8 {[%clk 0:02:09]} 18. Bh4 {[%clk 0:01:46]}  Bxh4 {[%clk 0:01:58]} 19. Nxh4 {[%clk 0:01:47]}  Nb4 {[%clk 0:01:56]} 20. Qb3 {[%clk 0:01:27]}  a5 {[%clk 0:01:54]} 21. Nhf3 {[%clk 0:01:18]}  Nf4 {[%clk 0:01:41]} 22. g3 {[%clk 0:01:09]}  Nfd3 {[%clk 0:01:32]} 23. Qc3 {[%clk 0:00:57]}  Qd7 {[%clk 0:01:29]} 24. Nb3 {[%clk 0:00:49]}  Rc8 {[%clk 0:01:28]} 25. Qd2 {[%clk 0:00:49]}  Qxa4 {[%clk 0:01:26]} 26. Nc1 {[%clk 0:00:45]}  Qc2 {[%clk 0:00:46]} 27. Qh6 {[%clk 0:00:42]}  Nxc1 {[%clk 0:00:12]} 28. Ng5 {[%clk 0:00:31]}  Ne2+ {[%clk 0:00:13]} 29. Kg2 {[%clk 0:00:28]}  Qf5 {[%clk 0:00:13]} 30. Qxh7+ {[%clk 0:00:20]}  Kf8 {[%clk 0:00:13]} 31. Qh8+ {[%clk 0:00:17]}  Ke7 {[%clk 0:00:13]} 32. Qxc8 {[%clk 0:00:15]}  Qxg5 {[%clk 0:00:14]} 33. Qc7+ {[%clk 0:00:13]}  Kf8 {[%clk 0:00:14]} 34. Qc8+ {[%clk 0:00:13]}  Kg7 {[%clk 0:00:14]} 35. h4 {[%clk 0:00:09]}  Qg4 {[%clk 0:00:14]} 36. Qd8 {[%clk 0:00:06]}  Qe4+ {[%clk 0:00:12]} 37. f3 {[%clk 0:00:04]}  Qf5 {[%clk 0:00:12]} 38. Qf6+ {[%clk 0:00:03]}  Qxf6 {[%clk 0:00:12]} 39. exf6+ {[%clk 0:00:04]}  Kxf6 {[%clk 0:00:13]} 40. Re1 {[%clk 0:00:03]}  Nxd4 {[%clk 0:00:13]} 41. Rd1 {[%clk 0:00:02]}  Ndc2 {[%clk 0:00:13]} 42. Rc1 {[%clk 0:00:02]}  d4 {[%clk 0:00:13]} 43. b3 {[%clk 0:00:02]}  d3 {[%clk 0:00:13]} 44. Kf2 {[%clk 0:00:02]}  d2 {[%clk 0:00:13]} 45. Rd1 {[%clk 0:00:02]}  Nd4 {[%clk 0:00:13]} 46. Rxd2 {[%clk 0:00:02]}  Nxb3 {[%clk 0:00:14]} 47. Rb2 {[%clk 0:00:02]}  a4 {[%clk 0:00:14]} 48. Ke3 {[%clk 0:00:00]}  Ke5 {[%clk 0:00:14]} 0-1

[Event "January 2 Early 2024"]
[Site "https://www.chess.com"]
[Date "2024.01.02"]
[Round "9"]
[White "Murthy, Pappu"]
[Black "Pein, Jonathan"]
[Result "0-1"]
[Board "174"]
[TimeControl "180+1"]
[WhiteFideId "2013401"]
[BlackFideId "417092"]
[WhiteElo "1978"]
[BlackElo "2364"]
[WhiteTeam "USA"]
[BlackTeam "ENG"]
[WhiteClock "0:00:17"]
[BlackClock "0:00:39"]

1. e4 {[%clk 0:03:00]}  e5 {[%clk 0:02:53]} 2. Nf3 {[%clk 0:03:00]}  d6 {[%clk 0:02:52]} 3. Nc3 {[%clk 0:03:00]}  Nf6 {[%clk 0:02:51]} 4. d4 {[%clk 0:02:59]}  exd4 {[%clk 0:02:52]} 5. Nxd4 {[%clk 0:02:57]}  g6 {[%clk 0:02:52]} 6. Bf4 {[%clk 0:02:55]}  Bg7 {[%clk 0:02:51]} 7. Qd2 {[%clk 0:02:55]}  Nc6 {[%clk 0:02:52]} 8. Nb3 {[%clk 0:02:54]}  a5 {[%clk 0:02:52]} 9. a4 {[%clk 0:02:52]}  Be6 {[%clk 0:02:51]} 10. Bb5 {[%clk 0:02:52]}  h5 {[%clk 0:02:47]} 11. h3 {[%clk 0:02:51]}  O-O {[%clk 0:02:36]} 12. Bh6 {[%clk 0:02:49]}  Re8 {[%clk 0:02:36]} 13. Bxg7 {[%clk 0:02:48]}  Kxg7 {[%clk 0:02:35]} 14. O-O-O {[%clk 0:02:44]}  Bxb3 {[%clk 0:02:35]} 15. cxb3 {[%clk 0:02:43]}  Nxe4 {[%clk 0:02:36]} 16. Nxe4 {[%clk 0:02:31]}  Rxe4 {[%clk 0:02:37]} 17. Bxc6 {[%clk 0:02:12]}  bxc6 {[%clk 0:02:38]} 18. Qc3+ {[%clk 0:02:12]}  Qf6 {[%clk 0:02:25]} 19. Qxc6 {[%clk 0:02:05]}  Re2 {[%clk 0:02:15]} 20. Qc3 {[%clk 0:01:56]}  Rxf2 {[%clk 0:01:47]} 21. Qxf6+ {[%clk 0:01:48]}  Kxf6 {[%clk 0:01:48]} 22. Rhf1 {[%clk 0:01:48]}  Rxf1 {[%clk 0:01:47]} 23. Rxf1+ {[%clk 0:01:49]}  Ke6 {[%clk 0:01:47]} 24. Kc2 {[%clk 0:01:49]}  Rb8 {[%clk 0:01:41]} 25. Kc3 {[%clk 0:01:48]}  Rb4 {[%clk 0:01:40]} 26. Re1+ {[%clk 0:01:46]}  Kd7 {[%clk 0:01:39]} 27. g3 {[%clk 0:01:42]}  f5 {[%clk 0:01:37]} 28. Re3 {[%clk 0:01:42]}  c6 {[%clk 0:01:32]} 29. Rd3 {[%clk 0:01:36]}  Ke6 {[%clk 0:01:30]} 30. Re3+ {[%clk 0:01:34]}  Re4 {[%clk 0:01:18]} 31. Rf3 {[%clk 0:01:23]}  d5 {[%clk 0:01:14]} 32. Kd3 {[%clk 0:01:21]}  Ke5 {[%clk 0:01:05]} 33. Kc3 {[%clk 0:01:20]}  c5 {[%clk 0:01:04]} 34. Kd3 {[%clk 0:01:17]}  g5 {[%clk 0:01:01]} 35. Kc3 {[%clk 0:01:12]}  h4 {[%clk 0:00:55]} 36. Kd3 {[%clk 0:01:05]}  hxg3 {[%clk 0:00:38]} 37. Rxg3 {[%clk 0:01:04]}  Kf4 {[%clk 0:00:39]} 38. Rg1 {[%clk 0:00:50]}  Re3+ {[%clk 0:00:39]} 39. Kc2 {[%clk 0:00:50]}  Rxh3 {[%clk 0:00:39]} 40. Rd1 {[%clk 0:00:37]}  d4 {[%clk 0:00:39]} 41. Re1 {[%clk 0:00:33]}  Re3 {[%clk 0:00:39]} 42. Rf1+ {[%clk 0:00:32]}  Ke5 {[%clk 0:00:39]} 43. Rg1 {[%clk 0:00:32]}  g4 {[%clk 0:00:40]} 44. Rh1 {[%clk 0:00:33]}  g3 {[%clk 0:00:40]} 45. Rh8 {[%clk 0:00:31]}  Kf4 {[%clk 0:00:39]} 46. Rg8 {[%clk 0:00:30]}  Kf3 {[%clk 0:00:40]} 47. Rg5 {[%clk 0:00:28]}  f4 {[%clk 0:00:39]} 48. Rxc5 {[%clk 0:00:26]}  g2 {[%clk 0:00:39]} 49. Rg5 {[%clk 0:00:17]}  Kf2 {[%clk 0:00:39]} 0-1

[Event "January 2 Early 2024"]
[Site "https://www.chess.com"]
[Date "2024.01.02"]
[Round "9"]
[White "Gulamirian, Korun"]
[Black "Gaboyan, Susanna"]
[Result "0-1"]
[Board "177"]
[TimeControl "180+1"]
[WhiteFideId "4144899"]
[BlackFideId "13303627"]
[WhiteElo "1572"]
[BlackElo "2326"]
[WhiteTeam "RUS"]
[BlackTeam "ARM"]
[WhiteClock "0:00:15"]
[BlackClock "0:00:07"]

1. e4 {[%clk 0:02:53]}  d6 {[%clk 0:02:58]} 2. d4 {[%clk 0:02:52]}  Nf6 {[%clk 0:02:57]} 3. Nc3 {[%clk 0:02:50]}  Nbd7 {[%clk 0:02:57]} 4. f4 {[%clk 0:02:49]}  g6 {[%clk 0:02:56]} 5. Nf3 {[%clk 0:02:49]}  Bg7 {[%clk 0:02:56]} 6. Bc4 {[%clk 0:02:45]}  O-O {[%clk 0:02:55]} 7. O-O {[%clk 0:02:44]}  c5 {[%clk 0:02:48]} 8. e5 {[%clk 0:02:39]}  Ne8 {[%clk 0:02:41]} 9. dxc5 {[%clk 0:02:33]}  Nxc5 {[%clk 0:02:39]} 10. exd6 {[%clk 0:02:17]}  Nxd6 {[%clk 0:02:32]} 11. Bb3 {[%clk 0:02:09]}  Bf5 {[%clk 0:01:56]} 12. Be3 {[%clk 0:02:01]}  Nce4 {[%clk 0:01:53]} 13. Ne5 {[%clk 0:01:52]}  Nxc3 {[%clk 0:01:50]} 14. bxc3 {[%clk 0:01:50]}  Qc7 {[%clk 0:01:51]} 15. Qe1 {[%clk 0:01:36]}  Ne4 {[%clk 0:01:42]} 16. Bd4 {[%clk 0:01:33]}  Rac8 {[%clk 0:01:38]} 17. g4 {[%clk 0:01:21]}  Nd6 {[%clk 0:01:01]} 18. gxf5 {[%clk 0:01:18]}  Nxf5 {[%clk 0:01:02]} 19. Qe4 {[%clk 0:01:11]}  Nd6 {[%clk 0:00:56]} 20. Qd5 {[%clk 0:01:09]}  e6 {[%clk 0:00:55]} 21. Qf3 {[%clk 0:01:05]}  Nb5 {[%clk 0:00:53]} 22. a4 {[%clk 0:00:52]}  Nxc3 {[%clk 0:00:49]} 23. Bxc3 {[%clk 0:00:51]}  Qxc3 {[%clk 0:00:50]} 24. Qxb7 {[%clk 0:00:48]}  Rcd8 {[%clk 0:00:23]} 25. Rad1 {[%clk 0:00:47]}  Rxd1 {[%clk 0:00:21]} 26. Rxd1 {[%clk 0:00:46]}  Qe3+ {[%clk 0:00:22]} 27. Kf1 {[%clk 0:00:41]}  Qxf4+ {[%clk 0:00:22]} 28. Nf3 {[%clk 0:00:39]}  g5 {[%clk 0:00:16]} 29. Kg2 {[%clk 0:00:35]}  g4 {[%clk 0:00:15]} 30. Ng1 {[%clk 0:00:30]}  Be5 {[%clk 0:00:14]} 31. Rd3 {[%clk 0:00:23]}  Qxh2+ {[%clk 0:00:14]} 32. Kf1 {[%clk 0:00:23]}  g3 {[%clk 0:00:14]} 33. Qg2 {[%clk 0:00:21]}  Qh4 {[%clk 0:00:14]} 34. Nf3 {[%clk 0:00:21]}  Qf4 {[%clk 0:00:15]} 35. Kg1 {[%clk 0:00:19]}  Bg7 {[%clk 0:00:12]} 36. Ne1 {[%clk 0:00:17]}  Bd4+ {[%clk 0:00:06]} 37. Kh1 {[%clk 0:00:17]}  Qh6+ {[%clk 0:00:06]} 38. Qh3 {[%clk 0:00:15]}  Qxh3# {[%clk 0:00:07]} 0-1

[Event "January 2 Early 2024"]
[Site "https://www.chess.com"]
[Date "2024.01.02"]
[Round "9"]
[White "Osiecki, Stanislaw"]
[Black "Petersson, Kjell"]
[Result "1-0"]
[Board "180"]
[TimeControl "180+1"]
[WhiteFideId "1102990"]
[BlackFideId "1705148"]
[WhiteElo "2097"]
[BlackElo "2135"]
[WhiteTeam "POL"]
[BlackTeam "SWE"]
[WhiteClock "0:00:44"]
[BlackClock "0:00:03"]

1. e4 {[%clk 0:03:00]}  c5 {[%clk 0:02:59]} 2. c3 {[%clk 0:03:00]}  d5 {[%clk 0:02:58]} 3. e5 {[%clk 0:02:59]}  Bf5 {[%clk 0:02:57]} 4. d4 {[%clk 0:02:57]}  e6 {[%clk 0:02:56]} 5. Bd3 {[%clk 0:02:55]}  Bxd3 {[%clk 0:02:54]} 6. Qxd3 {[%clk 0:02:46]}  Nc6 {[%clk 0:02:55]} 7. Ne2 {[%clk 0:02:43]}  cxd4 {[%clk 0:02:47]} 8. cxd4 {[%clk 0:02:43]}  Nge7 {[%clk 0:02:44]} 9. Nbc3 {[%clk 0:02:43]}  Qb6 {[%clk 0:02:35]} 10. O-O {[%clk 0:02:41]}  Nf5 {[%clk 0:02:35]} 11. Nxd5 {[%clk 0:02:41]}  Qd8 {[%clk 0:02:15]} 12. Ne3 {[%clk 0:02:35]}  Nfxd4 {[%clk 0:02:12]} 13. Nxd4 {[%clk 0:02:34]}  Qxd4 {[%clk 0:02:09]} 14. Qb5 {[%clk 0:02:35]}  Qxe5 {[%clk 0:02:03]} 15. Qxb7 {[%clk 0:02:33]}  Bd6 {[%clk 0:01:08]} 16. Qxa8+ {[%clk 0:02:25]}  Nb8 {[%clk 0:01:07]} 17. f4 {[%clk 0:02:10]}  Qd4 {[%clk 0:01:05]} 18. Rd1 {[%clk 0:02:04]}  Qxf4 {[%clk 0:01:05]} 19. g3 {[%clk 0:01:58]}  Qe5 {[%clk 0:00:58]} 20. Nc4 {[%clk 0:01:39]}  Qc5+ {[%clk 0:00:57]} 21. Be3 {[%clk 0:01:36]}  Qxc4 {[%clk 0:00:52]} 22. Rxd6 {[%clk 0:01:35]}  O-O {[%clk 0:00:52]} 23. Qxa7 {[%clk 0:01:30]}  Qb4 {[%clk 0:00:46]} 24. Qd4 {[%clk 0:01:26]}  Qa5 {[%clk 0:00:40]} 25. b4 {[%clk 0:01:25]}  Qc7 {[%clk 0:00:36]} 26. Rc1 {[%clk 0:01:24]}  Qe7 {[%clk 0:00:34]} 27. Rd1 {[%clk 0:01:11]}  e5 {[%clk 0:00:33]} 28. Qd5 {[%clk 0:01:09]}  h6 {[%clk 0:00:19]} 29. Rd8 {[%clk 0:01:08]}  Kh7 {[%clk 0:00:16]} 30. Rxf8 {[%clk 0:01:07]}  Qxf8 {[%clk 0:00:17]} 31. Qxe5 {[%clk 0:01:06]}  Nc6 {[%clk 0:00:15]} 32. Qe4+ {[%clk 0:01:04]}  g6 {[%clk 0:00:13]} 33. Qxc6 {[%clk 0:01:04]}  Qxb4 {[%clk 0:00:14]} 34. Qd7 {[%clk 0:00:59]}  Qc4 {[%clk 0:00:12]} 35. Rf1 {[%clk 0:00:51]}  Kg8 {[%clk 0:00:03]} 36. Qxf7+ {[%clk 0:00:44]} 1-0

[Event "January 2 Early 2024"]
[Site "https://www.chess.com"]
[Date "2024.01.02"]
[Round "9"]
[White "Muzzi, Eduardo"]
[Black "Khegay, Yuliya"]
[Result "0-1"]
[Board "182"]
[TimeControl "180+1"]
[WhiteFideId "3001253"]
[BlackFideId "14205394"]
[WhiteElo "1915"]
[BlackElo "2106"]
[WhiteTeam "URU"]
[BlackTeam "UZB"]
[WhiteClock "0:00:41"]
[BlackClock "0:00:10"]

1. e4 {[%clk 0:03:00]}  c5 {[%clk 0:02:56]} 2. Nc3 {[%clk 0:02:59]}  Nc6 {[%clk 0:02:56]} 3. Bc4 {[%clk 0:02:59]}  Nf6 {[%clk 0:02:51]} 4. f4 {[%clk 0:02:58]}  g6 {[%clk 0:02:44]} 5. d3 {[%clk 0:02:57]}  Bg7 {[%clk 0:02:45]} 6. Nf3 {[%clk 0:02:56]}  e6 {[%clk 0:02:42]} 7. O-O {[%clk 0:02:54]}  d6 {[%clk 0:02:28]} 8. Qe1 {[%clk 0:02:51]}  O-O {[%clk 0:02:26]} 9. f5 {[%clk 0:02:51]}  d5 {[%clk 0:02:26]} 10. Bb3 {[%clk 0:02:48]}  exf5 {[%clk 0:02:06]} 11. exd5 {[%clk 0:02:39]}  Nd4 {[%clk 0:01:48]} 12. Bg5 {[%clk 0:02:34]}  Qd6 {[%clk 0:01:20]} 13. Qh4 {[%clk 0:02:20]}  Nxb3 {[%clk 0:01:13]} 14. axb3 {[%clk 0:02:09]}  Nxd5 {[%clk 0:01:10]} 15. Nxd5 {[%clk 0:01:56]}  Qxd5 {[%clk 0:01:11]} 16. Bf6 {[%clk 0:01:56]}  b6 {[%clk 0:00:37]} 17. Ng5 {[%clk 0:01:34]}  h6 {[%clk 0:00:37]} 18. Bxg7 {[%clk 0:01:31]}  Kxg7 {[%clk 0:00:35]} 19. Nh3 {[%clk 0:01:22]}  Bb7 {[%clk 0:00:09]} 20. Rf2 {[%clk 0:01:20]}  Qd4 {[%clk 0:00:08]} 21. Nf4 {[%clk 0:01:13]}  g5 {[%clk 0:00:06]} 22. Nh5+ {[%clk 0:01:13]}  Kg6 {[%clk 0:00:07]} 23. Qxd4 {[%clk 0:01:13]}  cxd4 {[%clk 0:00:08]} 24. Ng3 {[%clk 0:01:11]}  f4 {[%clk 0:00:08]} 25. Ne2 {[%clk 0:01:05]}  Rfd8 {[%clk 0:00:07]} 26. Ra4 {[%clk 0:01:05]}  Bc6 {[%clk 0:00:04]} 27. Rxd4 {[%clk 0:01:04]}  a5 {[%clk 0:00:03]} 28. Rc4 {[%clk 0:00:59]}  Bb5 {[%clk 0:00:02]} 29. Rc7 {[%clk 0:00:58]}  Rac8 {[%clk 0:00:02]} 30. Rxc8 {[%clk 0:00:57]}  Rxc8 {[%clk 0:00:03]} 31. Nc3 {[%clk 0:00:57]}  Bc6 {[%clk 0:00:03]} 32. Re2 {[%clk 0:00:57]}  b5 {[%clk 0:00:03]} 33. Re7 {[%clk 0:00:56]}  b4 {[%clk 0:00:03]} 34. Ne4 {[%clk 0:00:55]}  Bxe4 {[%clk 0:00:04]} 35. Rxe4 {[%clk 0:00:54]}  Rxc2 {[%clk 0:00:05]} 36. Re5 {[%clk 0:00:53]}  Rxb2 {[%clk 0:00:05]} 37. Rxa5 {[%clk 0:00:53]}  Rxb3 {[%clk 0:00:06]} 38. Rc5 {[%clk 0:00:53]}  Rxd3 {[%clk 0:00:07]} 39. Rb5 {[%clk 0:00:53]}  b3 {[%clk 0:00:07]} 40. Kf2 {[%clk 0:00:53]}  g4 {[%clk 0:00:07]} 41. Ke2 {[%clk 0:00:53]}  Re3+ {[%clk 0:00:08]} 42. Kd2 {[%clk 0:00:52]}  f5 {[%clk 0:00:08]} 43. Rb6+ {[%clk 0:00:51]}  Kg5 {[%clk 0:00:09]} 44. g3 {[%clk 0:00:51]}  Rf3 {[%clk 0:00:08]} 45. gxf4+ {[%clk 0:00:49]}  Kxf4 {[%clk 0:00:09]} 46. Rb4+ {[%clk 0:00:49]}  Kg5 {[%clk 0:00:09]} 47. Rb5 {[%clk 0:00:49]}  Rf2+ {[%clk 0:00:08]} 48. Ke3 {[%clk 0:00:48]}  Rxh2 {[%clk 0:00:09]} 49. Kd4 {[%clk 0:00:46]}  Rh3 {[%clk 0:00:09]} 50. Kc4 {[%clk 0:00:45]}  Rf3 {[%clk 0:00:10]} 51. Rb8 {[%clk 0:00:41]}  h5 {[%clk 0:00:10]} 0-1

[Event "January 2 Early 2024"]
[Site "https://www.chess.com"]
[Date "2024.01.02"]
[Round "10"]
[White "Carlsen, Magnus"]
[Black "Duda, Jan-Krzysztof"]
[Result "1-0"]
[Board "2"]
[TimeControl "180+1"]
[WhiteFideId "1503014"]
[BlackFideId "1170546"]
[WhiteElo "3366"]
[BlackElo "3059"]
[WhiteTeam "NOR"]
[BlackTeam "POL"]
[WhiteClock "0:00:35"]
[BlackClock "0:00:00"]

1. b3 {[%clk 0:03:00]}  d5 {[%clk 0:02:57]} 2. Nf3 {[%clk 0:03:00]}  Nf6 {[%clk 0:02:55]} 3. Bb2 {[%clk 0:03:00]}  Bf5 {[%clk 0:02:52]} 4. Nh4 {[%clk 0:03:00]}  Bd7 {[%clk 0:02:44]} 5. e3 {[%clk 0:02:58]}  c5 {[%clk 0:02:43]} 6. c4 {[%clk 0:02:54]}  e6 {[%clk 0:02:43]} 7. Be2 {[%clk 0:02:52]}  Be7 {[%clk 0:02:33]} 8. O-O {[%clk 0:02:52]}  O-O {[%clk 0:02:33]} 9. Nf3 {[%clk 0:02:53]}  Nc6 {[%clk 0:02:33]} 10. d4 {[%clk 0:02:53]}  cxd4 {[%clk 0:02:31]} 11. exd4 {[%clk 0:02:53]}  Rc8 {[%clk 0:02:20]} 12. Nbd2 {[%clk 0:02:52]}  dxc4 {[%clk 0:02:12]} 13. bxc4 {[%clk 0:02:52]}  Re8 {[%clk 0:01:50]} 14. Nb3 {[%clk 0:02:49]}  Bf8 {[%clk 0:01:47]} 15. Qd2 {[%clk 0:02:41]}  Ne7 {[%clk 0:01:11]} 16. Ne5 {[%clk 0:02:38]}  g6 {[%clk 0:01:03]} 17. Bf3 {[%clk 0:02:17]}  b6 {[%clk 0:01:00]} 18. Rfe1 {[%clk 0:02:12]}  Bg7 {[%clk 0:00:59]} 19. Rad1 {[%clk 0:02:12]}  b5 {[%clk 0:00:40]} 20. Nxd7 {[%clk 0:02:03]}  Nxd7 {[%clk 0:00:25]} 21. cxb5 {[%clk 0:02:03]}  Nb6 {[%clk 0:00:25]} 22. Na5 {[%clk 0:01:55]}  Nc4 {[%clk 0:00:15]} 23. Nxc4 {[%clk 0:01:55]}  Rxc4 {[%clk 0:00:16]} 24. Qd3 {[%clk 0:01:49]}  Rc8 {[%clk 0:00:14]} 25. a4 {[%clk 0:01:47]}  Qa5 {[%clk 0:00:12]} 26. Qb3 {[%clk 0:01:46]}  Red8 {[%clk 0:00:10]} 27. g3 {[%clk 0:01:37]}  Nd5 {[%clk 0:00:08]} 28. Rc1 {[%clk 0:01:35]}  Nb6 {[%clk 0:00:06]} 29. d5 {[%clk 0:01:01]}  Bxb2 {[%clk 0:00:05]} 30. Qxb2 {[%clk 0:01:01]}  exd5 {[%clk 0:00:05]} 31. Qf6 {[%clk 0:00:54]}  Qxa4 {[%clk 0:00:04]} 32. Rc7 {[%clk 0:00:54]}  Rf8 {[%clk 0:00:04]} 33. Rxc8 {[%clk 0:00:49]}  Rxc8 {[%clk 0:00:03]} 34. Re7 {[%clk 0:00:48]}  Rf8 {[%clk 0:00:03]} 35. h4 {[%clk 0:00:48]}  h5 {[%clk 0:00:02]} 36. Kg2 {[%clk 0:00:39]}  Qc2 {[%clk 0:00:02]} 37. g4 {[%clk 0:00:39]}  hxg4 {[%clk 0:00:01]} 38. Bxg4 {[%clk 0:00:40]}  d4 {[%clk 0:00:02]} 39. Be6 {[%clk 0:00:39]}  Qe4+ {[%clk 0:00:01]} 40. Kg3 {[%clk 0:00:37]}  Qxe6 {[%clk 0:00:01]} 41. Rxe6 {[%clk 0:00:37]}  fxe6 {[%clk 0:00:02]} 42. Qxg6+ {[%clk 0:00:37]}  Kh8 {[%clk 0:00:03]} 43. Qh6+ {[%clk 0:00:38]}  Kg8 {[%clk 0:00:03]} 44. Qxe6+ {[%clk 0:00:39]}  Kg7 {[%clk 0:00:04]} 45. Qe5+ {[%clk 0:00:39]}  Rf6 {[%clk 0:00:04]} 46. Qxd4 {[%clk 0:00:40]}  Kf7 {[%clk 0:00:04]} 47. h5 {[%clk 0:00:39]}  Nc8 {[%clk 0:00:02]} 48. Kg4 {[%clk 0:00:38]}  Ne7 {[%clk 0:00:02]} 49. f4 {[%clk 0:00:37]}  Rb6 {[%clk 0:00:02]} 50. Qc4+ {[%clk 0:00:37]}  Kg7 {[%clk 0:00:02]} 51. Qc5 {[%clk 0:00:36]}  Ng8 {[%clk 0:00:02]} 52. Kg5 {[%clk 0:00:36]}  Nh6 {[%clk 0:00:02]} 53. Qe5+ {[%clk 0:00:36]}  Kf8 {[%clk 0:00:02]} 54. Qh8+ {[%clk 0:00:35]}  Ng8 {[%clk 0:00:02]} 55. h6 {[%clk 0:00:34]}  Rxh6 {[%clk 0:00:01]} 56. Qxh6+ {[%clk 0:00:35]}  Nxh6 {[%clk 0:00:01]} 57. Kxh6 {[%clk 0:00:36]}  Ke7 {[%clk 0:00:02]} 58. Kg7 {[%clk 0:00:34]}  Ke6 {[%clk 0:00:00]} 59. Kg6 {[%clk 0:00:35]} 1-0

[Event "January 2 Early 2024"]
[Site "https://www.chess.com"]
[Date "2024.01.02"]
[Round "10"]
[White "Svane, Frederik"]
[Black "Nakamura, Hikaru"]
[Result "1/2-1/2"]
[Board "3"]
[TimeControl "180+1"]
[WhiteFideId "12923044"]
[BlackFideId "2016192"]
[WhiteElo "3040"]
[BlackElo "3236"]
[WhiteTeam "GER"]
[BlackTeam "USA"]
[WhiteClock "0:00:03"]
[BlackClock "0:00:04"]

1. e4 {[%clk 0:03:00]}  b6 {[%clk 0:02:58]} 2. d4 {[%clk 0:02:56]}  Bb7 {[%clk 0:02:58]} 3. Bd3 {[%clk 0:02:57]}  e6 {[%clk 0:02:58]} 4. Nf3 {[%clk 0:02:57]}  d5 {[%clk 0:02:58]} 5. e5 {[%clk 0:02:57]}  c5 {[%clk 0:02:58]} 6. c3 {[%clk 0:02:57]}  Qd7 {[%clk 0:02:58]} 7. O-O {[%clk 0:02:57]}  Ba6 {[%clk 0:02:58]} 8. Bxa6 {[%clk 0:02:56]}  Nxa6 {[%clk 0:02:59]} 9. Be3 {[%clk 0:02:56]}  Ne7 {[%clk 0:02:57]} 10. Qd3 {[%clk 0:02:47]}  Qb7 {[%clk 0:02:53]} 11. Nbd2 {[%clk 0:02:28]}  Nc6 {[%clk 0:02:51]} 12. h4 {[%clk 0:02:21]}  Nc7 {[%clk 0:02:43]} 13. Rad1 {[%clk 0:02:19]}  Qa6 {[%clk 0:02:43]} 14. Qb1 {[%clk 0:02:20]}  h6 {[%clk 0:02:34]} 15. h5 {[%clk 0:02:20]}  Be7 {[%clk 0:02:33]} 16. Nh2 {[%clk 0:02:17]}  O-O-O {[%clk 0:02:26]} 17. f4 {[%clk 0:02:12]}  f5 {[%clk 0:02:21]} 18. Ndf3 {[%clk 0:01:44]}  Rhg8 {[%clk 0:02:15]} 19. Kh1 {[%clk 0:01:44]}  g5 {[%clk 0:02:13]} 20. hxg6 {[%clk 0:01:43]}  Rxg6 {[%clk 0:02:14]} 21. g4 {[%clk 0:01:38]}  Rf8 {[%clk 0:01:43]} 22. Rg1 {[%clk 0:01:38]}  fxg4 {[%clk 0:01:19]} 23. Qxg6 {[%clk 0:01:32]}  gxf3 {[%clk 0:01:19]} 24. Qd3 {[%clk 0:01:19]}  Qxa2 {[%clk 0:01:17]} 25. Nxf3 {[%clk 0:01:15]}  Qxb2 {[%clk 0:01:16]} 26. Rb1 {[%clk 0:00:57]}  Qa2 {[%clk 0:01:08]} 27. dxc5 {[%clk 0:00:29]}  bxc5 {[%clk 0:01:03]} 28. Ra1 {[%clk 0:00:29]}  Qc4 {[%clk 0:01:02]} 29. Qxc4 {[%clk 0:00:28]}  dxc4 {[%clk 0:01:03]} 30. Rg6 {[%clk 0:00:28]}  Nd5 {[%clk 0:01:01]} 31. Bd2 {[%clk 0:00:15]}  Nxf4 {[%clk 0:01:00]} 32. Bxf4 {[%clk 0:00:14]}  Rxf4 {[%clk 0:01:01]} 33. Kg2 {[%clk 0:00:15]}  Kd7 {[%clk 0:00:34]} 34. Rd1+ {[%clk 0:00:14]}  Kc7 {[%clk 0:00:35]} 35. Rxe6 {[%clk 0:00:14]}  Re4 {[%clk 0:00:30]} 36. Rxh6 {[%clk 0:00:13]}  Re2+ {[%clk 0:00:31]} 37. Kg3 {[%clk 0:00:12]}  Re3 {[%clk 0:00:31]} 38. Kf4 {[%clk 0:00:09]}  Rxc3 {[%clk 0:00:32]} 39. Rh7 {[%clk 0:00:10]}  Kb6 {[%clk 0:00:29]} 40. Rd7 {[%clk 0:00:09]}  Rxf3+ {[%clk 0:00:26]} 41. Kxf3 {[%clk 0:00:08]}  Nxe5+ {[%clk 0:00:27]} 42. Ke4 {[%clk 0:00:08]}  Nxd7 {[%clk 0:00:28]} 43. Rxe7 {[%clk 0:00:09]}  Kc6 {[%clk 0:00:27]} 44. Ke3 {[%clk 0:00:07]}  a5 {[%clk 0:00:24]} 45. Kd2 {[%clk 0:00:07]}  Nb6 {[%clk 0:00:25]} 46. Re6+ {[%clk 0:00:05]}  Kb5 {[%clk 0:00:25]} 47. Re8 {[%clk 0:00:05]}  Nd5 {[%clk 0:00:18]} 48. Rb8+ {[%clk 0:00:05]}  Ka4 {[%clk 0:00:18]} 49. Kc2 {[%clk 0:00:05]}  c3 {[%clk 0:00:16]} 50. Rd8 {[%clk 0:00:04]}  Nb6 {[%clk 0:00:09]} 51. Kxc3 {[%clk 0:00:04]}  Kb5 {[%clk 0:00:10]} 52. Rb8 {[%clk 0:00:04]}  Kc6 {[%clk 0:00:11]} 53. Rh8 {[%clk 0:00:05]}  a4 {[%clk 0:00:11]} 54. Rh6+ {[%clk 0:00:05]}  Kb5 {[%clk 0:00:12]} 55. Rh8 {[%clk 0:00:05]}  Nd5+ {[%clk 0:00:12]} 56. Kb2 {[%clk 0:00:06]}  Nc7 {[%clk 0:00:10]} 57. Rb8+ {[%clk 0:00:06]}  Ka5 {[%clk 0:00:10]} 58. Rc8 {[%clk 0:00:06]}  Na6 {[%clk 0:00:09]} 59. Ka3 {[%clk 0:00:05]}  Kb5 {[%clk 0:00:09]} 60. Rh8 {[%clk 0:00:05]}  c4 {[%clk 0:00:08]} 61. Rh5+ {[%clk 0:00:05]}  Nc5 {[%clk 0:00:08]} 62. Rh8 {[%clk 0:00:05]}  c3 {[%clk 0:00:09]} 63. Rh4 {[%clk 0:00:05]}  Nd3 {[%clk 0:00:07]} 64. Rh5+ {[%clk 0:00:04]}  Nc5 {[%clk 0:00:07]} 65. Rh4 {[%clk 0:00:04]}  Nd3 {[%clk 0:00:07]} 66. Rh5+ {[%clk 0:00:04]}  Kc4 {[%clk 0:00:08]} 67. Rh4+ {[%clk 0:00:04]}  Kd5 {[%clk 0:00:07]} 68. Rh2 {[%clk 0:00:02]}  Kc4 {[%clk 0:00:05]} 69. Kxa4 {[%clk 0:00:02]}  Ne5 {[%clk 0:00:03]} 70. Rc2 {[%clk 0:00:02]}  Nf3 {[%clk 0:00:04]} 71. Rxc3+ {[%clk 0:00:03]}  Kxc3 {[%clk 0:00:04]} 1/2-1/2